Cogmind - Beta 16.1 @@@ ROGUE MODE // 2026.04.17 @ 08:31:43 Player: M4-TR4 Result: Destroyed by Piercing Trap Performance ------------- Evolutions (0) 0 Regions Visited (2) 400 Robots Destroyed (10) 50 Value Destroyed (362) 362 Prototype IDs (0) 0 Alien Tech Used (0) 0 Bonus (0) 0 TOTAL SCORE: 812 Bonus ------- None Cogmind --------- Core Integrity 0/250 Matter 201/300 Energy 99/100 System Corruption 0% Temperature Cool (0) Movement Core (50) Location -10/Subcaves Parts ------- > --- POWER (1) -------- (None) > --- PROPULSION (2) --- (None) > --- UTILITY (2) ------ (None) > --- WEAPON (2) ------- (None) > --- INVENTORY (5) ---- Light Ion Engine Improved Aluminum Leg Compact Wheel Particle Gun Light Assault Rifle Peak State ------------ > --- POWER ------------ Subdweller Power Source > --- PROPULSION ------- Aluminum Leg Improved Aluminum Leg > --- UTILITY ---------- Disposable Heat Sink Large Storage Unit > --- WEAPON ----------- Particle Gun Battle Rifle > --- INVENTORY -------- Ion Engine Light Ion Engine Light Ion Engine Subdweller Power Source Improved Aluminum Leg Compact Wheel Compact Wheel Small Storage Unit Medium Storage Unit Seismic Detector Particle Gun Particle Gun Assault Rifle Light Assault Rifle [Rating: 13] Favorites ----------- Power Ion Engine Engine Ion Engine Propulsion Light Treads Treads Light Treads Leg Aluminum Leg Utility Large Storage Unit Device Heat Sink Storage Large Storage Unit Weapon Particle Gun Energy Gun Particle Gun Ballistic Gun Assault Rifle Build | -11 -10 -10 ------- Run | Yrd Mat Sub Slots Evolved . | . . . Power . | . . . Propulsion . | . . . Utility . | . . . Weapon . | . . . Parts Attached 17 | 1 8 8 Power 3 | . 1 2 Engine 3 | . 1 2 Core . | . . . Reactor . | . . . Propulsion 5 | . 2 3 Treads 2 | . 2 . Leg 3 | . . 3 Wheel . | . . . Hover . | . . . Flight . | . . . Utility 5 | 1 3 1 Device 3 | 1 1 1 Storage 2 | . 2 . Processor . | . . . Hackware . | . . . Protection . | . . . Artifact . | . . . Weapon 4 | . 2 2 Energy Gun 2 | . 1 1 Energy Cannon . | . . . Ballistic Gun 2 | . 1 1 Ballistic Cannon . | . . . Launcher . | . . . Special Weapon . | . . . Impact Weapon . | . . . Slashing Weapon . | . . . Piercing Weapon . | . . . Special Melee Weapon . | . . . Unidentified Prototypes . | . . . Parts Lost 3 | . . 3 Power . | . . . Propulsion 3 | . . 3 Utility . | . . . Weapon . | . . . Highest Loss Streak 2 | . . 2 To Critical Strikes . | . . . Average Backups 13 | 6 13 14 Power 2 | 1 1 2 Propulsion 4 | 4 5 4 Utility 2 | . 2 2 Weapon 3 | 1 3 4 Tool/Special . | . . . Unused Backups 6 | . . 6 Power 1 | . . 1 Propulsion 1 | . . 1 Utility 1 | . . 1 Weapon 3 | . . 3 Tool/Special . | . . . Average Slot Usage (%) 94 | . 98 92 Engine 13 | . 14 13 Treads 16 | . 27 10 Leg 11 | . . 16 Device 13 | . 13 13 Storage 13 | . 14 13 Energy Gun 15 | . 10 17 Ballistic Gun 8 | . 17 4 Peak Build Rating 13 | 7 10 13 Average Rating 9 | 6 9 10 On Entrance 7 | 6 7 10 Avg Prop Armor Cover (%) 10 | . . 10 Naked Turns 11 | . . 11 Heaviest Build 32 | 11 31 32 Greatest Support 40 | 20 40 40 Greatest Overweight (x) 3 | . . 3 Average Overweight (x) . | . . 1 Largest Inventory Capacity 15 | 8 15 15 Average Capacity 14 | 8 14 14 Most Carried 15 | 6 15 15 Average Carried 13 | 6 13 14 Final Capacity 15 | 8 15 5 Final Carried 15 | 6 15 5 Class Distribution -------------------- 100% | Mutant Dominant Class ---------------- Mutant | -10/Materials Mutant | -10/Subcaves Resources | -11 -10 -10 ----------- Run | Yrd Mat Sub Matter Collected 407 | 195 133 79 Remotely . | . . . Salvage Created 343 | 13 106 224 Parts 19 | 2 6 11 Haulers Intercepted . | . . . Recyclers Shooed . | . . . Parts Field Recycled . | . . . Retrieved Matter . | . . . Parts Self-Destructed 16 | . . 16 Prevented . | . . . Parts Restored . | . . . Kills | -11 -10 -10 ------- Run | Yrd Mat Sub Combat Hostiles Destroyed 9 | . 3 6 Guns 9 | . 3 6 Classes Destroyed 3 | 1 1 1 Tunneler 1 | 1 . . Grunt 3 | . 3 . Subdweller 6 | . . 6 Best Kill Streak 2 | 1 2 2 Combat Bots Only 2 | . 2 2 Max Kills in Single Turn 1 | 1 1 1 Gunslinging . | . . . Exploded . | . . . Melee . | . . . Uniques/NPCs Destroyed . | . . . Combat | -11 -10 -10 -------- Run | Yrd Mat Sub Hostile Shots Fired 83 | . 23 60 Missed 22 | . 6 16 Hits 61 | . 17 44 Projectile 61 | . 17 44 Damage Taken 1198 | . 217 981 Core 254 | . 18 236 Absorbed by Shields . | . . . Core Remaining (%) 100 | 100 . . Volleys Fired 52 | 5 15 32 Largest 2 | 2 2 2 Hottest 130 | 40 85 130 Shots Fired 104 | 10 30 64 Gun 104 | 10 30 64 Cannon . | . . . Launcher . | . . . Special . | . . . Kinetic 49 | 10 21 18 Thermal 55 | . 9 46 Explosive . | . . . Electromagnetic . | . . . Robot Hit Streak 18 | 1 8 18 Robot Miss Streak 3 | 2 3 1 Penetration Max . | . . . Secondary Targets . | . . . Shots Hit Robots 80 | 4 18 58 Core Hits 22 | 1 7 14 Critical Kills . | . . . Critical Parts Destroyed . | . . . Critical Strikes 1 | . . 1 Destroy 1 | . . 1 Melee Attacks . | . . . Impact . | . . . Slashing . | . . . Piercing . | . . . Sneak Attacks . | . . . Combat Hostiles . | . . . Follow-up Attacks . | . . . Damage Inflicted 1149 | 34 219 896 Guns 1145 | 34 219 892 Cannons . | . . . Explosions . | . . . Melee . | . . . Ramming 4 | . . 4 Kinetic 384 | 34 96 254 Thermal 761 | . 123 638 Explosive . | . . . Electromagnetic . | . . . Impact . | . . . Slashing . | . . . Piercing . | . . . Highest Corruption . | . . . Average Corruption . | . . . Corruption Purged . | . . . Corruption Blocked . | . . . Overload Shots . | . . . Overflow Damage . | . . . Projectiles . | . . . Explosions . | . . . Melee . | . . . Knockbacks . | . . . Impact . | . . . Kinetic . | . . . Secondary . | . . . Self-Inflicted Damage . | . . . Shots . | . . . Rammed 1 | . . 1 Targets Rammed 1 | . . 1 Kicked . | . . . Crushed . | . . . Highest Temperature 33 | . 33 2 Average Temperature 11 | . 14 1 Received Heat Transfer 309 | . 126 183 Siege Activations . | . . . Martial Activations . | . . . Shielding Activations . | . . . Robots Disrupted . | . . . Combat Hostiles . | . . . Robots Corrupted . | . . . Combat Hostiles . | . . . Parts Fried . | . . . Impact Corruptions . | . . . Robots Melted . | . . . Combat Hostiles . | . . . Parts Melted 2 | . . 2 Heat Transferred 1813 | . 296 1517 Parts Sabotaged . | . . . Parts Stolen . | . . . Parts Stripped . | . . . Power Chain Reactions . | . . . Alert | -11 -10 -10 ------- Run | Yrd Mat Sub Maximum Alert Level . | . . . Low Security (%) 100 | 100 100 . Level 1 . | . . . Level 2 . | . . . Level 3 . | . . . Level 4 . | . . . Level 5 . | . . . High Security . | . . . Max Security . | . . . Peak Influence 30 | 5 30 . Initial 3 | . 3 . Average 4 | 1 4 . Influence Increases 75 | 5 70 . Destroy 0b10 Robot/C 60 | . 60 . Destroy 0b10 Robot/NC 5 | 5 . . Destroy Leader 10 | . 10 . Influence Decreases 75 | . 75 . Entered New Map 2 | . 2 . Time Decay 73 | . 73 . Squads Dispatched . | . . . Investigation . | . . . Extermination . | . . . Reinforcement . | . . . Assault . | . . . Garrison . | . . . Intercept . | . . . Searches Triggered . | . . . Construction Impeded . | . . . Haulers Reinforced . | . . . Active Scanning Responses . | . . . Cargo Convoy Interrupts . | . . . Stealth | -11 -10 -10 --------- Run | Yrd Mat Sub Distress Signals . | . . . Communications Jammed . | . . . Distress Signals . | . . . Times Spotted 15 | . 6 9 Peak Tracking Total 4 | . 4 3 Tactical Retreats . | . . . Traps | -11 -10 -10 ------- Run | Yrd Mat Sub Traps Triggered 2 | . . 2 Indirectly . | . . . Trap Hack Attempts . | . . . Triggered . | . . . Disarmed . | . . . Reprogrammed . | . . . Reused . | . . . Traps Extracted . | . . . Installed . | . . . Triggered . | . . . Machines | -11 -10 -10 ---------- Run | Yrd Mat Sub Machines Disabled . | . . . Max in Single Turn . | . . . Machines Repaired . | . . . Machines Dismantled . | . . . Machines Sabotaged . | . . . Overloaded Fab Kills . | . . . Hacking | -11 -10 -10 --------- Run | Yrd Mat Sub Machines Accessed . | . . . Terminals . | . . . Fabricators . | . . . Repair Stations . | . . . Recycling Units . | . . . Scanalyzers . | . . . Garrison Access . | . . . Total Hacks . | . . . Successful . | . . . Failed . | . . . Catastrophic . | . . . Database Lockouts . | . . . Manual . | . . . Terminals . | . . . Fabricators . | . . . Repair Stations . | . . . Recycling Units . | . . . Scanalyzers . | . . . Garrison Access . | . . . Terminal Hacks . | . . . Fabricator Hacks . | . . . Repair Station Hacks . | . . . Recycling Unit Hacks . | . . . Scanalyzer . | . . . Garrison Access Hacks . | . . . Unauthorized Hacks . | . . . Terminals . | . . . Fabricators . | . . . Repair Stations . | . . . Recycling Units . | . . . Scanalyzers . | . . . Garrison Access . | . . . Data Cores Recovered . | . . . Used . | . . . Hacking Detections . | . . . Full Trace Events . | . . . Feedback Events . | . . . Feedback Blocked . | . . . Robot Schematics Acquired . | . . . Robots Built . | . . . Authchips . | . . . Time . | . . . Total Robot Build Rating . | . . . Part Schematics Acquired . | . . . Parts Built . | . . . Authchips . | . . . Time . | . . . Total Part Build Rating . | . . . Part Studies Acquired . | . . . Parts Repaired . | . . . Time . | . . . Parts Recycled . | . . . Recycled Matter . | . . . Retrieved Matter . | . . . Retrieved Components . | . . . Parts Scanalyzed . | . . . Part Schematics Acquired . | . . . Parts Damaged . | . . . Bothacking | -11 -10 -10 ------------ Run | Yrd Mat Sub Used RIF Installer . | . . . Robots Hacked . | . . . Non-combat . | . . . Combat . | . . . Robot Hacks Applied . | . . . Relay Couplers Released . | . . . Fabnet Peak Effective % . | . . . Robots Rewired . | . . . Allies Hacked . | . . . Hacks Repelled . | . . . Allies | -11 -10 -10 -------- Run | Yrd Mat Sub Total Allies . | . . . Largest Group . | . . . Highest-Rated Group . | . . . Highest-Rated Ally . | . . . Total Orders . | . . . Ally Attacks . | . . . Total Damage . | . . . Kills . | . . . Allies Corrupted . | . . . Allies Melted . | . . . Intel | -11 -10 -10 ------- Run | Yrd Mat Sub Active Infowar (turns) 150 | 12 56 82 Seismic 150 | 12 56 82 Robot Analysis Total . | . . . Derelict Logs Recovered 1 | . . 1 Drone Launches . | . . . Drone Recoveries . | . . . Exploration | -11 -10 -10 ------------- Run | Yrd Mat Sub Turns Passed 1261 | 59 412 790 Spaces Moved 433 | 38 113 282 Core 22 | . . 22 Treads 208 | . 108 100 Legs 203 | 38 5 160 Wheels . | . . . Hover . | . . . Flight . | . . . Fastest Speed 50 | 120 120 50 Average Speed 185 | 120 158 205 Slowest Speed 330 | 120 160 330 Overloaded Moves . | . . . Propulsion Burnouts . | . . . Robots Hopped . | . . . Potential Cave-ins . | . . . Cave-ins Triggered . | . . . Exploration Rate (%) 16 | 4 19 25 Regions Visited 2 Branch Regions 1 Pre-discovered Areas . | . . . Known Exits Taken . | . . . Unknown Exits Taken 2 | 1 1 . Scrap Searched . | . . . Spaces Dug . | . . . Terrain Destroyed . | . . . Melee . | . . . Projectile . | . . . AOE . | . . . Terrain Rammed . | . . . Walls Destroyed . | . . . Machines Disabled . | . . . Actions | -11 -10 -10 --------- Run | Yrd Mat Sub Total 785 | 43 316 426 Wait 268 | . 173 95 Move 431 | 37 112 282 Hop . | . . . Pick Up 7 | . 6 1 Fast Attach 3 | 1 1 1 Attach 5 | . 1 4 Detach 1 | . 1 . Swap 14 | . 6 8 Drop 3 | . 1 2 Fire 52 | 5 15 32 Melee . | . . . Ram . | . . . Kick . | . . . Crush 1 | . . 1 Escape Stasis . | . . . Rewire . | . . . Trap . | . . . Miscellaneous . | . . . Route ------- -11/Scrapyard -10/Materials -10/Subcaves History --------- Turn | Location | Event 7 | -11/Scrapyard | Discovered new exit (range 3) 60 | -11/Scrapyard | Entered Materials 311 | -10/Materials | Build established: Mutant 456 | -10/Materials | Discovered new exit (range 6) 472 | -10/Materials | Entered Subcaves 473 | -10/Subcaves | Approached by a straggling Scientist 476 | -10/Subcaves | Learned Materials trap positions 667 | -10/Subcaves | Shifting Twisted Machinery released Sub. Monowheel 1196 | -10/Subcaves | Core integrity fell below 50% 1250 | -10/Subcaves | Core integrity fell below 20% 1251 | -10/Subcaves | Released all parts (7) 1262 | -10/Subcaves | Destroyed by Piercing Trap Last Messages --------------- 00918_ Acquired 14 matter. 01069_ Acquired 10 matter. 01071_ Acquired 8 matter. 01173_ GW-0DL(R) destroyed. 01193_ Aluminum Leg destroyed. 01198_ KG-PLX(R) suffers critical hit (Destroy). 01201_ KG-PLX(R) destroyed. 01211_ Dropped Heat Sink. 01212_ Acquired Disposable Heat Sink. 01251_ Released Disposable Heat Sink. 01251_ Released Battle Rifle. 01251_ Released Imp. Aluminum Leg. 01251_ Released Aluminum Leg. 01251_ Released Lrg. Storage Unit. 01251_ Released Sub. Power Source. 01251_ Released Assault Rifle. 01257_ Triggered Piercing Trap. 01257_ Spikes shoot up from the floor. 01262_ Triggered Piercing Trap. 01262_ Spikes shoot up from the floor. Map ----- +----------------------------------------------------+ | ?????????????????????????????????????????????????? | | ?????????????????????????????????????????????????? | | ?????????????????????????????????????????????????? | | ?????????????????????????????????????????????????? | | ?????????????????????????????????????????????????? | | ?????????????????????????????????????????????????? | | ?????????????????????????????????????????????????? | | ?????????????????????????????????????????????????? | | ?????????????????????????????????????????????????? | | ?????????????????????????????????????????????????? | | ?????????????????????????????????????????????????? | | ?????????????????????????????????????????????????? | | ?????????????????????????????????????????????????? | | ?????????????????????????????????????????????????? | | ?????????????????????????????????????????????????? | | ?????????????????????????????????????????????????? | | ?????????????????????????????????????????????????? | | ???????????????????????####??????????????????????? | | ??????????????????????## ###????????????????????? | | ??????????????????????# #####????????????????? | | ??????????????????????# #????????????????? | | ??????????????????????### ##????????????????? | | ??????????????????????### ##?????????????????? | | ??????????????????????# #??????????????????? | | ??????????????????????# #??????????????????? | | ??????????????????????# @ ###???###????????????? | | ??????????????????????#### ##???? #????????????? | | ?????????????????????????# ##### ###???????????? | | ??????????????????#?????## ## #" " #???????????? | | ?????????????????## ????# #?#?????????? | | ?????????????????# ????# ### ## ####??????? | | ?????????????????# ??## ##### #??????? | | ????????????????## ### *#=### ##??????? | | ????????????????# [!*=!!* ## ##???????? | | ???????????????## [![!=#####??####????????? | | ???????????????# *[####??????????????????? | | ???????????????### ##?????????????????????? | | ????????????????## #??######?##???????????? | | ????????????????# ### # ## ##??????????? | | ????????????????# # ##"" #??????????? | | ??????????????????# ?##" #??????????? | | ??????????????????????#"" # # #??????????? | | ?????????????????????# ""## ###??#" ##??????????? | | ???????????????????# "### ##????#" #??????????? | | ???????????????????# #### #???## ##??????????? | | ?????????????????? ####" !###### #??????????? | | ?????????????????# #?##"" % [ ###????????? | | ??????????????????##??# "" [%! ##???????? | | ??????????????????????# "##!# #???????? | | ??????????????????????##""?###### ##???????? | +----------------------------------------------------+ Best States ------------- Heat Dissipation 35 Coolant Potential 50 Energy Generation 15 Energy Capacity 250 Matter Stores 300 Matter Capacity 300 Sight Range 16 Terrain Scan Density 10 Evasion (%) 55 Recoil Reduction 2 Item Schematics ----------------- None Robot Schematics ------------------ None Fabricated ------------ Nothing Repaired ---------- Nothing Studied --------- None Alien Tech Used ----------------- None Achievements -------------- None Challenges ------------ None Game ------ Seed ArcsightTiamatStabilizer Manual? 0 Play Time 00:16:42 Cumulative 43.8 hours Start 2026.04.17 @ 04:43:53 End 2026.04.17 @ 08:31:43 Sessions 4 Manual Loads 0 Difficulty Rogue Special Mode None Game No. 23 Rogue 14 Adventurer 0 Explorer 9 Win Type - Total 2 Types 2/0/0/0/0/0/0/0/0/0 Lore% 27 Gallery% 32 Achievement% 39 Wizard Run 0 Options --------- Layout 0 ASCII 0 Keyboard 0 Movement Mouse Keybinds 0 Fullscreen 1 Font 18/SmallcapsGlow Map View 76x50 Zoom Use 0% Tactical HUD 1 Map Filters NONE Filters NONE Steam 1 RUN: ba0ba0cf-800f-4b29-ba77-3a2b5b8cf3de